Cogmind - Beta 15 @@@ ROGUE MODE // 2025.07.15 @ 19:55:48 Player: SpaceExplorer337 Result: Destroyed by H-55 Commando with Gauss Rifle Performance ------------- Evolutions (2) 1000 Regions Visited (4) 800 Robots Destroyed (68) 340 Value Destroyed (1835) 1835 Prototype IDs (0) 0 Alien Tech Used (0) 0 Bonus (49) 49 TOTAL SCORE: 4024 Bonus ------- High Alert Combat Kills 49 Cogmind --------- Core Integrity 0/550 Matter 253/300 Energy 28/100 System Corruption 0% Temperature Cool (0) Movement Walking (330) Ox3 Location -8/Materials Parts ------- > --- POWER (1) -------- (None) > --- PROPULSION (3) --- Aluminum Leg > --- UTILITY (5) ------ Large Storage Unit Improved Terrain Scanner Advanced Terrain Scan Processor Hardened Medium Armor Plating > --- WEAPON (2) ------- Particle Gun Heavy Ion Cannon > --- INVENTORY (15) --- Improved Heat Sink Advanced Heat Sink Large Battery (200) Improved Signal Interpreter Beam Rifle Peak State ------------ > --- POWER ------------ Improved Ion Engine > --- PROPULSION ------- Aluminum Leg Aluminum Leg Carbon-fiber Leg > --- UTILITY ---------- Heat Sink Improved Heat Sink Large Storage Unit Improved Terrain Scanner Advanced Terrain Scan Processor > --- WEAPON ----------- Heavy Ion Cannon Heavy Ion Cannon > --- INVENTORY -------- Light Nuclear Core Light Nuclear Core Heat Sink Heat Sink Improved Heat Sink Advanced Heat Sink Large Battery Improved Signal Interpreter Beam Rifle Particle Gun Particle Gun Heavy Ion Cannon Grenade Launcher [Rating: 30] Favorites ----------- Power Ion Engine Engine Ion Engine Power Core Light Nuclear Core Propulsion Aluminum Leg Leg Aluminum Leg Utility Large Storage Unit Device Improved Terrain Scanner Storage Large Storage Unit Processor Advanced Terrain Scan Processor Protection Light Armor Plating Weapon Particle Gun Energy Gun Particle Gun Energy Cannon Beam Cannon Ballistic Gun Assault Rifle Launcher Grenade Launcher Build | -11 -10 -10 -9 -8 ------- Run | Yrd Mat Min Mat Mat Slots Evolved 4 | . . . 2 2 Power . | . . . . . Propulsion 1 | . . . . 1 Utility 3 | . . . 2 1 Weapon . | . . . . . Parts Attached 50 | 6 2 3 16 23 Power 7 | 1 . . 3 3 Engine 5 | 1 . . 3 1 Core 2 | . . . . 2 Reactor . | . . . . . Propulsion 14 | 1 1 . 5 7 Treads . | . . . . . Leg 14 | 1 1 . 5 7 Wheel . | . . . . . Hover . | . . . . . Flight . | . . . . . Utility 14 | 1 1 1 4 7 Device 7 | . . 1 3 3 Storage 3 | 1 1 . . 1 Processor 2 | . . . . 2 Hackware . | . . . . . Protection 2 | . . . 1 1 Artifact . | . . . . . Weapon 15 | 3 . 2 4 6 Energy Gun 5 | 1 . 1 1 2 Energy Cannon 6 | . . 1 1 4 Ballistic Gun 2 | 2 . . . . Ballistic Cannon . | . . . . . Launcher 2 | . . . 2 . Special Weapon . | . . . . . Impact Weapon . | . . . . . Slashing Weapon . | . . . . . Piercing Weapon . | . . . . . Special Melee Weapon . | . . . . . Unidentified Prototypes . | . . . . . Parts Lost 36 | . . 2 11 23 Power 5 | . . . 1 4 Propulsion 13 | . . . 4 9 Utility 7 | . . . 3 4 Weapon 11 | . . 2 3 6 Highest Loss Streak 14 | . . 1 8 14 To Critical Strikes 1 | . . . . 1 Average Backups 11 | 3 7 13 13 12 Power 1 | 1 1 2 2 1 Propulsion 2 | . 1 3 3 1 Utility 3 | . 1 3 3 4 Weapon 4 | 1 3 4 4 5 Tool/Special . | . . . . . Unused Backups 10 | . . 1 2 7 Power 2 | . . . 1 1 Propulsion . | . . . . . Utility 4 | . . . . 4 Weapon 4 | . . 1 1 2 Tool/Special . | . . . . . Average Slot Usage (%) 92 | . 79 100 94 92 Engine 10 | . 14 14 10 7 Leg 23 | . 22 28 21 23 Device 18 | . . 14 22 23 Storage 11 | . 14 14 11 10 Processor 2 | . . . . 8 Protection 2 | . . . 6 . Energy Gun 8 | . 5 12 10 2 Energy Cannon 10 | . . 13 10 14 Ballistic Gun 3 | . 22 2 . . Peak Build Rating 30 | 5 7 11 15 30 Average Rating 14 | 4 5 10 14 24 On Entrance 7 | . 5 7 11 13 Naked Turns . | . . . . . Heaviest Build 47 | 14 29 32 37 47 Greatest Support 35 | 10 20 20 20 35 Greatest Overweight (x) 4 | 1 1 1 3 4 Average Overweight (x) 1 | . 1 1 1 1 Largest Inventory Capacity 15 | 8 15 15 15 15 Average Capacity 14 | 7 12 15 15 14 Most Carried 15 | 5 11 15 15 15 Average Carried 11 | 3 7 13 13 12 Final Capacity 15 | 8 15 15 15 15 Final Carried 15 | 5 11 15 14 5 Class Distribution -------------------- 53% | Scavenger-Mutant 46% | Mutant Dominant Class ---------------- Mutant | -10/Materials Mutant | -10/Mines Scavenger-Mutant | -9/Materials Scavenger-Mutant | -8/Materials Resources | -11 -10 -10 -9 -8 ----------- Run | Yrd Mat Min Mat Mat Matter Collected 785 | 320 111 53 175 126 Remotely . | . . . . . Salvage Created 2241 | 127 240 175 873 826 Parts 150 | 10 12 8 69 51 Haulers Intercepted . | . . . . . Recyclers Shooed 4 | . 1 . 1 2 Parts Field Recycled . | . . . . . Retrieved Matter . | . . . . . Parts Self-Destructed . | . . . . . Prevented . | . . . . . Kills | -11 -10 -10 -9 -8 ------- Run | Yrd Mat Min Mat Mat Combat Hostiles Destroyed 48 | . 4 4 25 15 Guns 11 | . 4 . 6 1 Cannons 33 | . . 4 16 13 AOE 3 | . . . 3 . Classes Destroyed 11 | 2 3 . 5 1 Worker 5 | . 1 . 4 . Builder 2 | . . . 1 1 Tunneler 6 | 4 1 . . 1 Recycler 3 | 1 . . 1 1 Mechanic 1 | . . . 1 . Operator 2 | . 1 . . 1 Watcher 1 | . . . 1 . Swarmer 13 | . . . 10 3 Grunt 24 | . 4 4 9 7 Sentry 10 | . . . 6 4 Heavy 1 | . . . . 1 Best Kill Streak 7 | 4 4 2 7 4 Combat Bots Only 5 | . 2 2 5 3 Max Kills in Single Turn 5 | 1 2 1 5 1 Gunslinging 1 | . 1 . . . Exploded 1 | . . . 1 . Melee . | . . . . . Uniques/NPCs Destroyed . | . . . . . Combat | -11 -10 -10 -9 -8 -------- Run | Yrd Mat Min Mat Mat Hostile Shots Fired 378 | . 32 28 148 170 Missed 112 | . 16 4 48 44 Hits 266 | . 16 24 100 126 Projectile 266 | . 16 24 100 126 Critical Strikes 13 | . 1 2 1 9 Damage Taken 4332 | . 197 310 1374 2451 Core 830 | . 9 55 212 554 Absorbed by Shields . | . . . . . Regen/Repaired (Parts) 270 | . . . . 270 Core Remaining (%) 73 | 100 . 74 47 . Volleys Fired 171 | 10 18 15 70 58 Largest 2 | 2 2 2 2 2 Hottest 134 | 40 60 125 133 134 Shots Fired 307 | 20 36 30 114 107 Gun 143 | 20 36 17 43 27 Cannon 158 | . . 13 66 79 Launcher 6 | . . . 5 1 Special . | . . . . . Kinetic 58 | 20 29 9 . . Thermal 234 | . . 19 109 106 Explosive 6 | . . . 5 1 Electromagnetic 9 | . 7 2 . . Robot Hit Streak 19 | 8 6 6 10 19 Robot Miss Streak 6 | 3 3 2 5 6 Penetration Max . | . . . . . Secondary Targets 2 | . 2 . . . Max Gunslinging Chain 1 | . 1 . . . Shots Hit Robots 190 | 12 20 20 66 72 Core Hits 103 | 6 15 9 41 32 Critical Kills 1 | . . . . 1 Critical Parts Destroyed 1 | . 1 . . . Critical Strikes 2 | . 1 . . 1 Meltdown 1 | . . . . 1 Destroy 1 | . 1 . . . Melee Attacks . | . . . . . Impact . | . . . . . Slashing . | . . . . . Piercing . | . . . . . Sneak Attacks . | . . . . . Combat Hostiles . | . . . . . Follow-up Attacks . | . . . . . Damage Inflicted 4202 | 163 299 304 1695 1741 Guns 1335 | 163 299 147 447 279 Cannons 2196 | . . 157 607 1432 Explosions 654 | . . . 626 28 Melee . | . . . . . Ramming 17 | . . . 15 2 Kinetic 510 | 163 258 89 . . Thermal 3400 | . . 200 1489 1711 Explosive 219 | . . . 191 28 Electromagnetic 56 | . 41 15 . . Impact . | . . . . . Slashing . | . . . . . Piercing . | . . . . . Highest Corruption 1 | . . . 1 . Average Corruption 1 | . . . 1 . Corruption Purged . | . . . . . Corruption Blocked . | . . . . . Effects 1 | . . . 1 . Message Errors 1 | . . . 1 . Overload Shots . | . . . . . Overflow Damage 112 | . . . 111 1 Projectiles 1 | . . . . 1 Explosions 111 | . . . 111 . Melee . | . . . . . Knockbacks 1 | . . . 1 . Impact 1 | . . . 1 . Kinetic . | . . . . . Secondary . | . . . . . Self-Inflicted Damage 138 | . . . 138 . Shots 6 | . . . 6 . Rammed . | . . . . . Targets Rammed 9 | . . . 5 4 Kicked 9 | . . . 5 4 Crushed . | . . . . . Highest Temperature 354 | . 20 351 147 354 Average Temperature 88 | . 10 121 52 126 Received Heat Transfer 1206 | . 120 210 372 504 Siege Activations . | . . . . . Martial Activations . | . . . . . Shielding Activations . | . . . . . Robots Disrupted . | . . . . . Combat Hostiles . | . . . . . Robots Corrupted . | . . . . . Combat Hostiles . | . . . . . Parts Fried . | . . . . . Impact Corruptions . | . . . . . Robots Melted 1 | . . . . 1 Combat Hostiles 1 | . . . . 1 Parts Melted 12 | . . 2 3 7 Heat Transferred 5776 | . . 444 2594 2738 Parts Sabotaged . | . . . . . Parts Stolen . | . . . . . Parts Stripped . | . . . . . Power Chain Reactions . | . . . . . Alert | -11 -10 -10 -9 -8 ------- Run | Yrd Mat Min Mat Mat Maximum Alert Level 2 | . . . 2 1 Low Security (%) 52 | 100 100 100 29 25 Level 1 39 | . . . 50 74 Level 2 7 | . . . 19 . Level 3 . | . . . . . Level 4 . | . . . . . Level 5 . | . . . . . High Security . | . . . . . Max Security . | . . . . . Peak Influence 446 | 15 57 55 446 298 Initial 183 | . . . . 183 Average 167 | 1 22 17 252 230 Influence Increases 1594 | 25 122 115 870 462 Destroy 0b10 Robot/C 960 | . 80 80 500 300 Destroy 0b10 Robot/NC 100 | 25 15 . 40 20 Destroy Leader 252 | . 20 20 132 80 Successful Hack 13 | . 7 . 6 . Disable Machine 120 | . . . 105 15 Destroy Structure 74 | . . . 57 17 Lose Combat Pursuer 75 | . . 15 30 30 Influence Decreases 1481 | 25 122 115 436 783 Entered New Map 251 | . . . . 251 Time Decay 880 | 25 122 105 326 302 Lost Part 350 | . . 10 110 230 Squads Dispatched 4 | . . . 3 1 Investigation . | . . . . . Extermination . | . . . . . Reinforcement 4 | . . . 3 1 Assault . | . . . . . Garrison . | . . . . . Intercept . | . . . . . Searches Triggered . | . . . . . Construction Impeded . | . . . . . Haulers Reinforced . | . . . . . Active Scanning Responses . | . . . . . Cargo Convoy Interrupts . | . . . . . Stealth | -11 -10 -10 -9 -8 --------- Run | Yrd Mat Min Mat Mat Distress Signals 6 | . . . 2 4 Communications Jammed . | . . . . . Distress Signals . | . . . . . Times Spotted 78 | . 11 5 40 22 Peak Tracking Total 6 | . 4 2 6 4 Tactical Retreats 5 | . . 1 2 2 Traps | -11 -10 -10 -9 -8 ------- Run | Yrd Mat Min Mat Mat Traps Triggered 2 | . . . 2 . Indirectly . | . . . . . Trap Hack Attempts . | . . . . . Triggered . | . . . . . Disarmed . | . . . . . Reprogrammed . | . . . . . Reused . | . . . . . Traps Extracted . | . . . . . Installed . | . . . . . Triggered . | . . . . . Machines | -11 -10 -10 -9 -8 ---------- Run | Yrd Mat Min Mat Mat Machines Disabled 8 | . . . 7 1 Max in Single Turn 3 | . . . 3 1 Machines Repaired . | . . . . . Machines Dismantled . | . . . . . Machines Sabotaged . | . . . . . Overloaded Fab Kills . | . . . . . Hacking | -11 -10 -10 -9 -8 --------- Run | Yrd Mat Min Mat Mat Machines Accessed 8 | . 2 . 5 1 Terminals 7 | . 2 . 5 . Fabricators . | . . . . . Repair Stations 1 | . . . . 1 Recycling Units . | . . . . . Scanalyzers . | . . . . . Garrison Access . | . . . . . Total Hacks 20 | . 6 . 9 5 Successful 12 | . 2 . 6 4 Failed 8 | . 4 . 3 1 Catastrophic 2 | . 1 . 1 . Database Lockouts . | . . . . . Manual . | . . . . . Terminals 15 | . 6 . 9 . Fabricators . | . . . . . Repair Stations 5 | . . . . 5 Recycling Units . | . . . . . Scanalyzers . | . . . . . Garrison Access . | . . . . . Terminal Hacks 8 | . 2 . 6 . Record 6 | . 2 . 4 . Alert Level 1 | . . . 1 . Dispatch Records 1 | . . . 1 . Fabricator Hacks . | . . . . . Repair Station Hacks 4 | . . . . 4 Scan Component 2 | . . . . 2 Repair 2 | . . . . 2 Recycling Unit Hacks . | . . . . . Scanalyzer . | . . . . . Garrison Access Hacks . | . . . . . Unauthorized Hacks . | . . . . . Terminals . | . . . . . Fabricators . | . . . . . Repair Stations . | . . . . . Recycling Units . | . . . . . Scanalyzers . | . . . . . Garrison Access . | . . . . . Data Cores Recovered 2 | . 1 . . 1 Used . | . . . . . Hacking Detections 5 | . 2 . 3 . Full Trace Events . | . . . . . Feedback Events . | . . . . . Feedback Blocked . | . . . . . Robot Schematics Acquired . | . . . . . Robots Built . | . . . . . Authchips . | . . . . . Time . | . . . . . Total Robot Build Rating . | . . . . . Part Schematics Acquired . | . . . . . Parts Built . | . . . . . Authchips . | . . . . . Time . | . . . . . Total Part Build Rating . | . . . . . Parts Repaired 2 | . . . . 2 Time 64 | . . . . 64 Parts Recycled . | . . . . . Recycled Matter . | . . . . . Retrieved Matter . | . . . . . Retrieved Components . | . . . . . Parts Scanalyzed . | . . . . . Part Schematics Acquired . | . . . . . Parts Damaged . | . . . . . Bothacking | -11 -10 -10 -9 -8 ------------ Run | Yrd Mat Min Mat Mat Used RIF Installer . | . . . . . Robots Hacked . | . . . . . Non-combat . | . . . . . Combat . | . . . . . Robot Hacks Applied . | . . . . . Relay Couplers Released . | . . . . . Fabnet Peak Effective % . | . . . . . Robots Rewired . | . . . . . Allies Hacked . | . . . . . Hacks Repelled . | . . . . . Allies | -11 -10 -10 -9 -8 -------- Run | Yrd Mat Min Mat Mat Total Allies . | . . . . . Largest Group . | . . . . . Highest-Rated Group . | . . . . . Highest-Rated Ally . | . . . . . Total Orders . | . . . . . Ally Attacks . | . . . . . Total Damage . | . . . . . Kills . | . . . . . Allies Corrupted . | . . . . . Allies Melted . | . . . . . Intel | -11 -10 -10 -9 -8 ------- Run | Yrd Mat Min Mat Mat Active Infowar (turns) 1589 | . . 380 587 622 Optics 107 | . . . . 107 Terrain 1483 | . . 380 587 516 Robot Analysis Total . | . . . . . Derelict Logs Recovered . | . . . . . Drone Launches . | . . . . . Drone Recoveries . | . . . . . Exploration | -11 -10 -10 -9 -8 ------------- Run | Yrd Mat Min Mat Mat Turns Passed 2524 | 164 301 380 1017 662 Spaces Moved 943 | 84 125 170 413 151 Core 30 | 30 . . . . Treads . | . . . . . Legs 913 | 54 125 170 413 151 Wheels . | . . . . . Hover . | . . . . . Flight . | . . . . . Fastest Speed 50 | 50 190 190 190 190 Average Speed 188 | 143 190 190 191 203 Slowest Speed 400 | 190 190 190 330 400 Overloaded Moves . | . . . . . Propulsion Burnouts . | . . . . . Robots Hopped . | . . . . . Potential Cave-ins . | . . . . . Cave-ins Triggered . | . . . . . Exploration Rate (%) 30 | 4 25 47 54 23 Regions Visited 4 Branch Regions 1 Pre-discovered Areas . | . . . . . Known Exits Taken . | . . . . . Unknown Exits Taken 4 | 1 1 1 1 . Scrap Searched 1 | . . 1 . . Spaces Dug . | . . . . . Terrain Destroyed 72 | . . . 56 16 Melee . | . . . . . Projectile 9 | . . . . 9 AOE 63 | . . . 56 7 Terrain Rammed . | . . . . . Walls Destroyed . | . . . . . Machines Disabled . | . . . . . Actions | -11 -10 -10 -9 -8 --------- Run | Yrd Mat Min Mat Mat Total 1371 | 106 152 198 520 395 Wait 121 | . . . . 121 Move 939 | 83 124 169 412 151 Hop . | . . . . . Pick Up 65 | 7 7 9 13 29 Fast Attach 6 | 3 . . 1 2 Attach 39 | 2 1 3 11 22 Detach . | . . . . . Swap 10 | 1 2 . 4 3 Drop 11 | . . 2 4 5 Fire 171 | 10 18 15 70 58 Melee . | . . . . . Ram . | . . . . . Kick 9 | . . . 5 4 Crush . | . . . . . Escape Stasis . | . . . . . Rewire . | . . . . . Trap . | . . . . . Miscellaneous . | . . . . . Route ------- -11/Scrapyard -10/Materials -10/Mines (discovered 3 exits: *Mat x2 / [*Sub]) -9/Materials -8/Materials (discovered 1 exit: [*Fac]) History --------- Turn | Location | Event 10 | -11/Scrapyard | Discovered new exit (range 16) 165 | -11/Scrapyard | Entered Materials 311 | -10/Materials | Build established: Mutant 444 | -10/Materials | Discovered new exit (range 9) 466 | -10/Materials | Entered Mines 583 | -10/Mines | Discovered new exit (range 10) 627 | -10/Mines | Discovered new exit (range 8) 817 | -10/Mines | Discovered new exit (range 14) 846 | -10/Mines | Entered Materials 846 | -9/Materials | Evolved 2 slots: Utility x2 1327 | -9/Materials | Build established: Scavenger-Mutant 1478 | -9/Materials | Lost 8 parts (1p2n2u3w) 1798 | -9/Materials | Core integrity fell below 50% 1829 | -9/Materials | Discovered new exit (range 16) 1863 | -9/Materials | Entered another Materials area 1863 | -8/Materials | Evolved 2 slots: Propulsion x1, Utility x1 2105 | -8/Materials | Lost 4 parts (1p3n) 2289 | -8/Materials | Repaired Imp. Terrain Scanner 2317 | -8/Materials | Repaired Lrg. Storage Unit 2420 | -8/Materials | Discovered new exit (range 16) 2426 | -8/Materials | Core integrity fell below 50% 2497 | -8/Materials | Core integrity fell below 20% 2525 | -8/Materials | Destroyed by H-55 Commando with Gauss Rifle Last Messages --------------- 02490_ K-01 Serf collects debris. 02493_ Penetrated by Slug. 02494_ K-01 Serf collects debris. 02496_ Hvy. Laser destroyed. 02497_ Knocked back. 02498_ Acquired 9 matter. 02498_ K-01 Serf collects debris. 02499_ Grenade Launcher destroyed. 02502_ Penetrated by Slug. 02502_ Lgt. Nuclear Core destroyed. 02503_ H-61 Shepherd destroyed. 02505_ Penetrated by Slug. 02508_ Slug penetrates Wall. 02511_ R-06 Scavenger collects Terrain Scanner. 02514_ K-01 Serf collects debris. 02516_ R-06 Scavenger collects Welding Torch. 02517_ K-01 Serf collects debris. 02522_ R-06 Scavenger collects Aluminum Leg. 02525_ K-01 Serf collects debris. 02525_ Penetrated by Slug. Map ----- +----------------------------------------------------+ | ##########! ########## ?###??? | | ##########! ##############???????? | | ###########! #############????????? | | ############## ############??#??????? | | ####### # ############?#???????? | | ####### # ########?###?????????? | | ####### " " # #########?###????????? | | ####### "R" !+ #######?#####????????? | | ####### """ # ############?????????? | | ####### # ## #####?#?#?????????? | | ############## # ##??????????? | | #### ! # %w# !!*###?????????? | | #### ! # # !**## ????????? | | #### """ #% %# !* ## ????????? | | #### """"" + %r= ## ????????? | | #### """"" #% # """ ## ????????? | | #### """"" # ; """ ## ????????? | | #### """ #!%%# """ ## ????????? | | #### # # ## ???????? | | ############## %########### ????????? | | ####### # # #?###????????? | | ####### [! ; %+ = [ # ????????? | | ####### ! # %# # """????????? | | ####### # % #+####### """????????? | | ####?## ; ######? ""?????????? | | #######] w @ # # ????????? | | #?########### k # """ ???##????????? | | ?##? !! + """ ?# #?????????? | | #### ? !%!h ; """?## #?????????? | | #?## ? =!= # ? ##? ?????????? | | ?##? ? < #####+#? ??????????? | | ??##+?#+##+## ? ? ??????????? | | ???#?? ?## ### ?? ?????????????? | | ??## ??? #?##### ? ? ????????????? | | ???# ? ?####### * ?????????????? | | ?????????? ?? ??????????????? | | ???????#?? ? ?????????????? | | ?????##???? ? ? ??? ?????????????? | | ????????????? ?? ??? ????????????????? | | ??????????????????? ??????????????????? | | ??????????????????????????????????????? | | ??????????????????????????????????????? | | ??????????????????????????????????????? | | ??????????????????????????????????????? | | | | | | | | | | | | | +----------------------------------------------------+ Best States ------------- Heat Dissipation 74 Energy Generation 14 Energy Capacity 465 Matter Stores 300 Matter Capacity 300 Sight Range 18 Terrain Scan Range 16 Terrain Scan Density 210 Armor Coverage 225 Evasion (%) 50 Item Schematics ----------------- None Robot Schematics ------------------ None Fabricated ------------ Nothing Repaired ---------- Imp. Terrain Scanner | 13% | -8/Materials Lrg. Storage Unit | 28% | -8/Materials Alien Tech Used ----------------- None Achievements -------------- None Challenges ------------ None Game ------ Seed ThunderCoilBrace Manual? 0 Play Time 00:31:58 Cumulative 13.0 hours Start 2025.07.15 @ 19:23:59 End 2025.07.15 @ 19:55:48 Sessions 1 Manual Loads 0 Difficulty Rogue Special Mode None Game No. 19 Rogue 19 Adventurer 0 Explorer 0 Win Type - Total 0 Types 0/0/0/0/0/0/0/0/0/0 Lore% 13 Gallery% 15 Achievement% 16 Wizard Run 0 Options --------- Layout 1 ASCII 0 Keyboard 0 Movement Mouse Keybinds 0 Fullscreen 1 Font 24/Smallcaps Map View 50x40 Zoom Use 0% Tactical HUD 1 Map Filters NONE Filters NONE Steam 1 RUN: 8a2fae42-297f-4bfa-b8b9-2d02b817c990